[Event "Late-Titled-Tuesday-Blitz-September-05-2023"]
[Site "Chess.com"]
[Date "2023.09.05"]
[Round "8"]
[White "traack"]
[Black "bazar-wokzal"]
[Result "0-1"]
[WhiteElo "2372"]
[BlackElo "2524"]
[TimeControl "180+1"]
[EndTime "15:26:57 PDT"]
[Termination "bazar-wokzal won by resignation"]

1. e4 {[%clk 0:03:00.9]} 1... Nc6 {[%clk 0:02:59.6]} 2. Nf3 {[%clk 0:02:59.1]}
2... d5 {[%clk 0:02:59.6]} 3. exd5 {[%clk 0:02:59]} 3... Qxd5 {[%clk 0:03:00.5]}
4. Nc3 {[%clk 0:02:59.2]} 4... Qa5 {[%clk 0:03:00.6]} 5. d4 {[%clk 0:02:56.6]}
5... Bg4 {[%clk 0:03:00.5]} 6. d5 {[%clk 0:02:42.4]} 6... O-O-O {[%clk
0:02:59.9]} 7. Bd2 {[%clk 0:02:32.9]} 7... Nb4 {[%clk 0:02:59.9]} 8. Bc4 {[%clk
0:02:29.6]} 8... Bxf3 {[%clk 0:02:59.7]} 9. gxf3 {[%clk 0:02:27.6]} 9... Nf6
{[%clk 0:02:59]} 10. a3 {[%clk 0:02:09.2]} 10... Qc5 {[%clk 0:02:58.8]} 11. axb4
{[%clk 0:01:56.8]} 11... Qxc4 {[%clk 0:02:58.4]} 12. Rxa7 {[%clk 0:01:57.5]}
12... Nxd5 {[%clk 0:02:58.4]} 13. Ra8+ {[%clk 0:01:33.3]} 13... Kd7 {[%clk
0:02:58.6]} 14. Rxd8+ {[%clk 0:01:32.1]} 14... Kxd8 {[%clk 0:02:59.5]} 15. Be3
{[%clk 0:01:30.2]} 15... e6 {[%clk 0:02:51.2]} 16. Qd4 {[%clk 0:01:17.3]} 16...
Qxd4 {[%clk 0:02:38.4]} 17. Bxd4 {[%clk 0:01:16.2]} 17... Nxb4 {[%clk
0:02:38.5]} 18. Kd2 {[%clk 0:01:15.1]} 18... f6 {[%clk 0:02:37.8]} 19. f4 {[%clk
0:01:14.6]} 19... Bd6 {[%clk 0:02:34.4]} 20. Be3 {[%clk 0:01:14.7]} 20... Nd5
{[%clk 0:02:30.6]} 21. Nxd5 {[%clk 0:01:12.3]} 21... exd5 {[%clk 0:02:30.6]} 22.
f5 {[%clk 0:01:13.2]} 22... Re8 {[%clk 0:02:27.8]} 23. Rg1 {[%clk 0:01:09]}
23... Bf8 {[%clk 0:02:27.3]} 24. f4 {[%clk 0:01:06]} 24... Kd7 {[%clk
0:02:24.7]} 25. Ra1 {[%clk 0:00:56.3]} 25... Bd6 {[%clk 0:02:21.8]} 26. Ra7
{[%clk 0:00:55.3]} 26... Kc6 {[%clk 0:02:21.1]} 27. Ra4 {[%clk 0:00:53.7]} 27...
Re4 {[%clk 0:02:02.5]} 28. Rxe4 {[%clk 0:00:54.1]} 28... dxe4 {[%clk 0:02:02.9]}
29. c4 {[%clk 0:00:55]} 29... Bc5 {[%clk 0:01:54.7]} 30. b3 {[%clk 0:00:45.9]}
30... b5 {[%clk 0:01:53.8]} 31. h3 {[%clk 0:00:41.3]} 31... bxc4 {[%clk
0:01:48.6]} 32. bxc4 {[%clk 0:00:41]} 32... Bxe3+ {[%clk 0:01:48.8]} 33. Kxe3
{[%clk 0:00:40.5]} 33... Kc5 {[%clk 0:01:49.2]} 34. Kxe4 {[%clk 0:00:41]} 34...
Kxc4 {[%clk 0:01:49.6]} 35. h4 {[%clk 0:00:41.5]} 35... c5 {[%clk 0:01:49.3]}
36. h5 {[%clk 0:00:41.5]} 36... h6 {[%clk 0:01:48.7]} 37. Ke3 {[%clk 0:00:39.9]}
37... Kb3 {[%clk 0:01:48]} 38. Ke4 {[%clk 0:00:39.6]} 38... c4 {[%clk
0:01:48.4]} 39. Kd5 {[%clk 0:00:40.5]} 39... c3 {[%clk 0:01:48.9]} 40. Ke6
{[%clk 0:00:41.4]} 40... c2 {[%clk 0:01:49.5]} 41. Kf7 {[%clk 0:00:42.3]} 41...
c1=Q {[%clk 0:01:49.8]} 42. Kxg7 {[%clk 0:00:43.2]} 42... Qxf4 {[%clk
0:01:49.8]} 0-1

[Event "Late-Titled-Tuesday-Blitz-September-05-2023"]
[Site "Chess.com"]
[Date "2023.09.05"]
[Round "8"]
[White "sjoerd893"]
[Black "PotapovaM"]
[Result "0-1"]
[WhiteElo "2430"]
[BlackElo "2656"]
[TimeControl "180+1"]
[EndTime "15:27:25 PDT"]
[Termination "PotapovaM won by resignation"]

1. e4 {[%clk 0:03:00.9]} 1... e6 {[%clk 0:02:58.9]} 2. d4 {[%clk 0:02:58.4]}
2... d5 {[%clk 0:02:59.5]} 3. Nc3 {[%clk 0:02:56.7]} 3... Nf6 {[%clk 0:02:54.4]}
4. Bg5 {[%clk 0:02:54.1]} 4... dxe4 {[%clk 0:02:48.8]} 5. Nxe4 {[%clk
0:02:53.5]} 5... Be7 {[%clk 0:02:48.9]} 6. Nxf6+ {[%clk 0:02:50.8]} 6... gxf6
{[%clk 0:02:49.1]} 7. Bf4 {[%clk 0:02:47.9]} 7... b6 {[%clk 0:02:44.8]} 8. Nf3
{[%clk 0:02:42.1]} 8... Bb7 {[%clk 0:02:44.3]} 9. Bd3 {[%clk 0:02:40.6]} 9...
Nd7 {[%clk 0:02:43]} 10. Qe2 {[%clk 0:02:30.8]} 10... Bd6 {[%clk 0:02:27.8]} 11.
Bxd6 {[%clk 0:02:22.8]} 11... cxd6 {[%clk 0:02:28.7]} 12. O-O-O {[%clk
0:02:19.3]} 12... Qc7 {[%clk 0:02:24.8]} 13. c3 {[%clk 0:02:14.4]} 13... O-O-O
{[%clk 0:02:24.3]} 14. Kb1 {[%clk 0:02:06.4]} 14... f5 {[%clk 0:02:24.4]} 15.
Ng5 {[%clk 0:01:56.2]} 15... Nf6 {[%clk 0:02:23.2]} 16. f3 {[%clk 0:01:50.9]}
16... h6 {[%clk 0:02:22.6]} 17. Nh3 {[%clk 0:01:49.8]} 17... Nd5 {[%clk
0:02:23.1]} 18. a3 {[%clk 0:01:44.4]} 18... Kb8 {[%clk 0:02:23.3]} 19. Rhe1
{[%clk 0:01:38.2]} 19... Rhg8 {[%clk 0:02:21.6]} 20. g3 {[%clk 0:01:31.3]} 20...
h5 {[%clk 0:02:21.8]} 21. c4 {[%clk 0:01:30.5]} 21... Nf6 {[%clk 0:02:21.4]} 22.
f4 {[%clk 0:01:28.8]} 22... Ne4 {[%clk 0:02:16.3]} 23. Ka1 {[%clk 0:01:23.3]}
23... d5 {[%clk 0:02:03.7]} 24. Bxe4 {[%clk 0:01:16.8]} 24... fxe4 {[%clk
0:01:57.2]} 25. cxd5 {[%clk 0:01:10]} 25... Bxd5 {[%clk 0:01:58.1]} 26. Ng5
{[%clk 0:01:06.5]} 26... f5 {[%clk 0:01:54.6]} 27. Rc1 {[%clk 0:00:56.8]} 27...
Qd7 {[%clk 0:01:54]} 28. Qxh5 {[%clk 0:00:52.6]} 28... Qb5 {[%clk 0:01:52.6]}
29. Rc3 {[%clk 0:00:37.3]} 29... Rc8 {[%clk 0:01:48.2]} 30. Qf7 {[%clk
0:00:16.2]} 30... Rxc3 {[%clk 0:01:39.9]} 31. Qxg8+ {[%clk 0:00:10.9]} 31... Rc8
{[%clk 0:01:40.4]} 32. Qg7 {[%clk 0:00:04.6]} 32... Qb3 {[%clk 0:01:38.8]} 33.
Qe5+ {[%clk 0:00:04.7]} 33... Ka8 {[%clk 0:01:37.9]} 0-1

[Event "Late-Titled-Tuesday-Blitz-September-05-2023"]
[Site "Chess.com"]
[Date "2023.09.05"]
[Round "8"]
[White "Nick12772"]
[Black "The_Straightforward_Rook"]
[Result "0-1"]
[WhiteElo "2337"]
[BlackElo "2495"]
[TimeControl "180+1"]
[EndTime "15:27:28 PDT"]
[Termination "The_Straightforward_Rook won on time"]

1. Nf3 {[%clk 0:03:00.9]} 1... Nf6 {[%clk 0:02:59.1]} 2. g3 {[%clk 0:03:00.8]}
2... d5 {[%clk 0:02:55.9]} 3. Bg2 {[%clk 0:03:01.3]} 3... c5 {[%clk 0:02:56.1]}
4. O-O {[%clk 0:03:02]} 4... e6 {[%clk 0:02:56.6]} 5. d4 {[%clk 0:03:02.4]} 5...
cxd4 {[%clk 0:02:56.3]} 6. Nxd4 {[%clk 0:03:03.3]} 6... e5 {[%clk 0:02:56.9]} 7.
Nf3 {[%clk 0:03:03.1]} 7... Nc6 {[%clk 0:02:55.5]} 8. c4 {[%clk 0:03:02.6]} 8...
d4 {[%clk 0:02:55.4]} 9. e3 {[%clk 0:02:59.4]} 9... Be7 {[%clk 0:02:53.8]} 10.
exd4 {[%clk 0:02:39.8]} 10... exd4 {[%clk 0:02:54.7]} 11. Nbd2 {[%clk 0:02:34]}
11... O-O {[%clk 0:02:52.9]} 12. Nb3 {[%clk 0:02:34.3]} 12... d3 {[%clk
0:02:45.8]} 13. Be3 {[%clk 0:02:19.8]} 13... Bg4 {[%clk 0:02:43.7]} 14. h3
{[%clk 0:02:07.9]} 14... Bh5 {[%clk 0:02:42.5]} 15. Rc1 {[%clk 0:01:55.8]} 15...
Re8 {[%clk 0:02:33.9]} 16. Qd2 {[%clk 0:01:53.6]} 16... Qd7 {[%clk 0:02:26.5]}
17. Kh2 {[%clk 0:01:48]} 17... Rad8 {[%clk 0:02:24.5]} 18. Rfd1 {[%clk
0:01:47.7]} 18... Ne4 {[%clk 0:02:21.7]} 19. Qe1 {[%clk 0:01:39.7]} 19... Bb4
{[%clk 0:02:04.5]} 20. Qh1 {[%clk 0:01:26.1]} 20... d2 {[%clk 0:02:00.5]} 21.
Rc2 {[%clk 0:01:04.5]} 21... Qd3 {[%clk 0:01:58.7]} 22. Na1 {[%clk 0:00:35]}
22... Nxg3 {[%clk 0:01:54.5]} 23. Qg1 {[%clk 0:00:19.2]} 23... Rxe3 {[%clk
0:01:35.3]} 24. fxe3 {[%clk 0:00:16.8]} 24... Bd6 {[%clk 0:01:28.2]} 25. e4
{[%clk 0:00:08.3]} 25... Bxf3 {[%clk 0:01:13.9]} 0-1

[Event "Late-Titled-Tuesday-Blitz-September-05-2023"]
[Site "Chess.com"]
[Date "2023.09.05"]
[Round "8"]
[White "SCIM"]
[Black "IMGC"]
[Result "1-0"]
[WhiteElo "2587"]
[BlackElo "2427"]
[TimeControl "180+1"]
[EndTime "15:27:31 PDT"]
[Termination "SCIM won by resignation"]

1. e4 {[%clk 0:03:00.9]} 1... b6 {[%clk 0:02:58.7]} 2. d4 {[%clk 0:02:59.6]}
2... Bb7 {[%clk 0:02:59.2]} 3. Bd3 {[%clk 0:02:59.7]} 3... e6 {[%clk 0:02:57.7]}
4. Nf3 {[%clk 0:02:57.2]} 4... c5 {[%clk 0:02:56.3]} 5. c3 {[%clk 0:02:56.2]}
5... Nf6 {[%clk 0:02:55.3]} 6. Qe2 {[%clk 0:02:50]} 6... cxd4 {[%clk 0:02:42]}
7. cxd4 {[%clk 0:02:48.2]} 7... Nc6 {[%clk 0:02:41.5]} 8. a3 {[%clk 0:02:46.5]}
8... d6 {[%clk 0:02:40.8]} 9. O-O {[%clk 0:02:43.4]} 9... Be7 {[%clk 0:02:40.6]}
10. Nc3 {[%clk 0:02:42.4]} 10... O-O {[%clk 0:02:40.6]} 11. Bg5 {[%clk
0:02:33.3]} 11... Nd7 {[%clk 0:02:36.4]} 12. Bxe7 {[%clk 0:02:28.8]} 12... Nxe7
{[%clk 0:02:32.8]} 13. Rad1 {[%clk 0:02:29.7]} 13... Ng6 {[%clk 0:02:32.4]} 14.
g3 {[%clk 0:02:20.4]} 14... Qe7 {[%clk 0:02:25.8]} 15. h4 {[%clk 0:02:15.2]}
15... h6 {[%clk 0:02:22.8]} 16. h5 {[%clk 0:02:11.8]} 16... Nh8 {[%clk
0:02:22.9]} 17. Kg2 {[%clk 0:02:09.3]} 17... Nf6 {[%clk 0:02:04.3]} 18. Rh1
{[%clk 0:02:04.9]} 18... e5 {[%clk 0:02:04.1]} 19. d5 {[%clk 0:01:59.9]} 19...
Nh7 {[%clk 0:02:00.8]} 20. Nh4 {[%clk 0:01:52.3]} 20... Rac8 {[%clk 0:01:44.2]}
21. Nf5 {[%clk 0:01:48.3]} 21... Qf6 {[%clk 0:01:44.7]} 22. Nb5 {[%clk
0:01:40.9]} 22... Rfd8 {[%clk 0:01:34.3]} 23. Nxa7 {[%clk 0:01:38.4]} 23... Rc5
{[%clk 0:01:32.4]} 24. b4 {[%clk 0:01:28.5]} 24... Rc3 {[%clk 0:01:30.8]} 25. a4
{[%clk 0:01:27.9]} 25... Ng5 {[%clk 0:01:24.1]} 26. Nb5 {[%clk 0:01:24.9]} 26...
Rcc8 {[%clk 0:01:20]} 27. Rc1 {[%clk 0:01:15.7]} 27... Rxc1 {[%clk 0:01:02.6]}
28. Rxc1 {[%clk 0:01:14.5]} 28... Bxd5 {[%clk 0:00:37.2]} 29. exd5 {[%clk
0:01:09.4]} 29... e4 {[%clk 0:00:38.1]} 30. Bxe4 {[%clk 0:01:07]} 30... Re8
{[%clk 0:00:37.6]} 31. Nbxd6 {[%clk 0:01:01.3]} 1-0

[Event "Late-Titled-Tuesday-Blitz-September-05-2023"]
[Site "Chess.com"]
[Date "2023.09.05"]
[Round "8"]
[White "FredddieCroderg"]
[Black "CraiggoryC"]
[Result "1-0"]
[WhiteElo "2296"]
[BlackElo "2220"]
[TimeControl "180+1"]
[EndTime "15:27:33 PDT"]
[Termination "FredddieCroderg won on time"]

1. e4 {[%clk 0:03:00.9]} 1... e6 {[%clk 0:03:00.3]} 2. d3 {[%clk 0:02:59.8]}
2... d5 {[%clk 0:03:00.7]} 3. Nd2 {[%clk 0:03:00.3]} 3... Nf6 {[%clk 0:03:00.1]}
4. Ngf3 {[%clk 0:03:00.1]} 4... Bc5 {[%clk 0:03:00.3]} 5. e5 {[%clk 0:02:55.6]}
5... Nfd7 {[%clk 0:03:00.1]} 6. d4 {[%clk 0:02:56]} 6... Be7 {[%clk 0:03:00.7]}
7. c3 {[%clk 0:02:56.3]} 7... c5 {[%clk 0:03:01.3]} 8. Bd3 {[%clk 0:02:56.8]}
8... Nc6 {[%clk 0:03:02]} 9. O-O {[%clk 0:02:56.2]} 9... a5 {[%clk 0:03:02.6]}
10. Re1 {[%clk 0:02:54.5]} 10... cxd4 {[%clk 0:03:01.6]} 11. cxd4 {[%clk
0:02:54.7]} 11... Qb6 {[%clk 0:03:02.2]} 12. Nb1 {[%clk 0:02:24.9]} 12... Nxd4
{[%clk 0:02:57.7]} 13. Nxd4 {[%clk 0:02:24.8]} 13... Qxd4 {[%clk 0:02:58.6]} 14.
Nc3 {[%clk 0:02:24.6]} 14... Qb6 {[%clk 0:02:58.3]} 15. Be3 {[%clk 0:02:22.7]}
15... Qd8 {[%clk 0:02:56.6]} 16. Bb5 {[%clk 0:02:14.1]} 16... O-O {[%clk
0:02:53.8]} 17. Bd4 {[%clk 0:02:12.6]} 17... Nc5 {[%clk 0:02:37.8]} 18. Re3
{[%clk 0:02:11.5]} 18... Bd7 {[%clk 0:02:37.6]} 19. Rg3 {[%clk 0:02:06.4]} 19...
g6 {[%clk 0:02:23.8]} 20. Qd2 {[%clk 0:01:55.4]} 20... Re8 {[%clk 0:01:26.8]}
21. Bf1 {[%clk 0:01:44.4]} 21... Rc8 {[%clk 0:01:20.8]} 22. Rh3 {[%clk 0:01:43]}
22... Bf8 {[%clk 0:01:05]} 23. Be3 {[%clk 0:01:42.6]} 23... Bc6 {[%clk
0:00:38.9]} 24. Bh6 {[%clk 0:01:37.7]} 24... Ne4 {[%clk 0:00:36.6]} 25. Nxe4
{[%clk 0:01:34.5]} 25... dxe4 {[%clk 0:00:36.4]} 26. Qf4 {[%clk 0:01:34.9]}
26... Rc7 {[%clk 0:00:12.5]} 27. Bg5 {[%clk 0:01:22.1]} 27... Be7 {[%clk
0:00:09.4]} 28. Bf6 {[%clk 0:01:19.8]} 28... Bxf6 {[%clk 0:00:02.8]} 29. exf6
{[%clk 0:01:19.7]} 1-0

[Event "Late-Titled-Tuesday-Blitz-September-05-2023"]
[Site "Chess.com"]
[Date "2023.09.05"]
[Round "8"]
[White "MKlose11"]
[Black "ContrVersia"]
[Result "0-1"]
[WhiteElo "2636"]
[BlackElo "2894"]
[TimeControl "180+1"]
[EndTime "15:27:35 PDT"]
[Termination "ContrVersia won by resignation"]

1. e4 {[%clk 0:03:00.9]} 1... c5 {[%clk 0:02:59.8]} 2. Nc3 {[%clk 0:03:00.8]}
2... Nc6 {[%clk 0:02:57.8]} 3. g3 {[%clk 0:03:01.1]} 3... g6 {[%clk 0:02:57.2]}
4. Bg2 {[%clk 0:03:01.4]} 4... Bg7 {[%clk 0:02:58]} 5. d3 {[%clk 0:03:01.7]}
5... d6 {[%clk 0:02:58.5]} 6. Be3 {[%clk 0:02:51.7]} 6... Rb8 {[%clk 0:02:58]}
7. Qd2 {[%clk 0:02:51.6]} 7... b5 {[%clk 0:02:57.2]} 8. Nge2 {[%clk 0:02:51.5]}
8... Nd4 {[%clk 0:02:56.4]} 9. O-O {[%clk 0:02:47.8]} 9... e6 {[%clk 0:02:52.3]}
10. Nc1 {[%clk 0:02:39.4]} 10... Ne7 {[%clk 0:02:28.2]} 11. Nd1 {[%clk
0:02:38.9]} 11... b4 {[%clk 0:02:24.5]} 12. c3 {[%clk 0:02:38.9]} 12... bxc3
{[%clk 0:02:24.5]} 13. bxc3 {[%clk 0:02:39.8]} 13... Ndc6 {[%clk 0:02:25.2]} 14.
Ne2 {[%clk 0:02:38.5]} 14... Ba6 {[%clk 0:02:24.3]} 15. Rc1 {[%clk 0:02:29.1]}
15... O-O {[%clk 0:02:22.9]} 16. Re1 {[%clk 0:02:26.3]} 16... Qa5 {[%clk
0:02:22.5]} 17. Bf1 {[%clk 0:02:11.9]} 17... Rfc8 {[%clk 0:02:18.4]} 18. c4
{[%clk 0:01:11.3]} 18... Qxd2 {[%clk 0:02:09.8]} 19. Bxd2 {[%clk 0:01:12.2]}
19... Ne5 {[%clk 0:02:10.3]} 20. Kg2 {[%clk 0:00:24.3]} 20... Nxd3 {[%clk
0:02:09.7]} 21. Rc2 {[%clk 0:00:25.2]} 21... Nxe1+ {[%clk 0:02:08.4]} 22. Bxe1
{[%clk 0:00:26.1]} 22... Nc6 {[%clk 0:02:05]} 23. Ndc3 {[%clk 0:00:15.1]} 23...
Bxc4 {[%clk 0:02:04.1]} 24. a4 {[%clk 0:00:10.7]} 24... Nd4 {[%clk 0:02:02]} 25.
Rc1 {[%clk 0:00:05.1]} 25... Nxe2 {[%clk 0:01:58.3]} 26. Nxe2 {[%clk 0:00:04.8]}
26... Bd3 {[%clk 0:01:57.3]} 27. Nc3 {[%clk 0:00:04.5]} 27... Bxf1+ {[%clk
0:01:56.5]} 28. Kxf1 {[%clk 0:00:05.4]} 28... a6 {[%clk 0:01:48.8]} 29. Rd1
{[%clk 0:00:04.5]} 29... Bd4 {[%clk 0:01:45.7]} 30. Ne2 {[%clk 0:00:03.5]} 30...
e5 {[%clk 0:01:46.1]} 31. Nxd4 {[%clk 0:00:03.7]} 31... exd4 {[%clk 0:01:45.4]}
32. f4 {[%clk 0:00:03.9]} 32... Rb2 {[%clk 0:01:43.7]} 33. Ba5 {[%clk
0:00:03.8]} 33... Rxh2 {[%clk 0:01:42.8]} 34. Kg1 {[%clk 0:00:03.8]} 34... Ra2
{[%clk 0:01:42.8]} 35. Rb1 {[%clk 0:00:02.9]} 35... c4 {[%clk 0:01:42.4]} 36.
Be1 {[%clk 0:00:03.8]} 36... c3 {[%clk 0:01:42.5]} 37. Rb7 {[%clk 0:00:03.4]}
37... Ra1 {[%clk 0:01:41]} 38. Kg2 {[%clk 0:00:03.6]} 38... Rxe1 {[%clk
0:01:41]} 39. Kh3 {[%clk 0:00:04.5]} 39... c2 {[%clk 0:01:40.6]} 0-1

[Event "Late-Titled-Tuesday-Blitz-September-05-2023"]
[Site "Chess.com"]
[Date "2023.09.05"]
[Round "8"]
[White "NovikovaGalina"]
[Black "talaicito"]
[Result "1-0"]
[WhiteElo "2396"]
[BlackElo "2260"]
[TimeControl "180+1"]
[EndTime "15:27:37 PDT"]
[Termination "NovikovaGalina won by resignation"]

1. e4 {[%clk 0:03:00.9]} 1... c5 {[%clk 0:02:59.3]} 2. Nf3 {[%clk 0:03:00.4]}
2... d6 {[%clk 0:03:00]} 3. d4 {[%clk 0:03:00.4]} 3... cxd4 {[%clk 0:03:00.9]}
4. Nxd4 {[%clk 0:03:00.2]} 4... Nf6 {[%clk 0:03:01.8]} 5. Nc3 {[%clk 0:02:59.6]}
5... g6 {[%clk 0:03:02.7]} 6. Be3 {[%clk 0:02:58.8]} 6... Bg7 {[%clk 0:03:02.7]}
7. f3 {[%clk 0:02:59.7]} 7... O-O {[%clk 0:03:02.9]} 8. Qd2 {[%clk 0:03:00.6]}
8... Nc6 {[%clk 0:03:03.3]} 9. g4 {[%clk 0:03:01]} 9... h5 {[%clk 0:03:02.4]}
10. gxh5 {[%clk 0:03:00.7]} 10... Nxh5 {[%clk 0:03:02.4]} 11. O-O-O {[%clk
0:03:01.5]} 11... Bd7 {[%clk 0:03:00.3]} 12. Nb3 {[%clk 0:02:59.8]} 12... Rc8
{[%clk 0:02:56.8]} 13. Bh6 {[%clk 0:02:59.6]} 13... Ne5 {[%clk 0:02:54.4]} 14.
Bxg7 {[%clk 0:03:00.1]} 14... Kxg7 {[%clk 0:02:54.2]} 15. f4 {[%clk 0:03:00.5]}
15... Nc4 {[%clk 0:02:48.1]} 16. Qd4+ {[%clk 0:02:40.2]} 16... e5 {[%clk
0:02:46.4]} 17. fxe5 {[%clk 0:02:41.1]} 17... Qg5+ {[%clk 0:01:56.5]} 18. Kb1
{[%clk 0:02:40]} 18... dxe5 {[%clk 0:01:55.8]} 19. Qxd7 {[%clk 0:02:32.5]} 19...
Rfd8 {[%clk 0:01:56.3]} 20. Qxb7 {[%clk 0:02:25.1]} 20... Rxd1+ {[%clk
0:01:33.9]} 21. Nxd1 {[%clk 0:02:26]} 21... Nd2+ {[%clk 0:01:01.7]} 22. Nxd2
{[%clk 0:02:25.5]} 22... Qxd2 {[%clk 0:01:01.4]} 23. Bd3 {[%clk 0:02:25.8]}
23... Rd8 {[%clk 0:00:46.1]} 24. Qxa7 {[%clk 0:02:14.5]} 24... Nf4 {[%clk
0:00:29.1]} 25. Qe3 {[%clk 0:02:13.9]} 25... Qg2 {[%clk 0:00:21]} 26. Rg1 {[%clk
0:02:14.4]} 26... Qxh2 {[%clk 0:00:21.1]} 27. a4 {[%clk 0:02:14.3]} 27... Nxd3
{[%clk 0:00:21.1]} 28. cxd3 {[%clk 0:02:13.8]} 28... Rxd3 {[%clk 0:00:21.3]} 29.
Qxd3 {[%clk 0:02:14.7]} 29... Qxg1 {[%clk 0:00:21.5]} 30. a5 {[%clk 0:02:12.2]}
30... Qa7 {[%clk 0:00:20.3]} 31. a6 {[%clk 0:02:12.1]} 31... Qb6 {[%clk
0:00:19.9]} 32. Nc3 {[%clk 0:02:09.1]} 32... Qg1+ {[%clk 0:00:17.6]} 33. Kc2
{[%clk 0:02:07.2]} 33... g5 {[%clk 0:00:15.3]} 34. Nd1 {[%clk 0:01:51.3]} 34...
g4 {[%clk 0:00:14.6]} 35. Qe3 {[%clk 0:01:51.8]} 35... Qf1 {[%clk 0:00:10.2]}
36. a7 {[%clk 0:01:42.7]} 36... Qc4+ {[%clk 0:00:10.2]} 37. Nc3 {[%clk 0:01:41]}
37... Qa6 {[%clk 0:00:09.3]} 38. Qg5+ {[%clk 0:01:40.9]} 38... Kf8 {[%clk
0:00:08.8]} 39. Qd8+ {[%clk 0:01:41.1]} 39... Kg7 {[%clk 0:00:09.2]} 40. a8=Q
{[%clk 0:01:41.2]} 1-0

[Event "Late-Titled-Tuesday-Blitz-September-05-2023"]
[Site "Chess.com"]
[Date "2023.09.05"]
[Round "8"]
[White "KaydenTroffChess"]
[Black "Dzidzik2203"]
[Result "1-0"]
[WhiteElo "2799"]
[BlackElo "2387"]
[TimeControl "180+1"]
[EndTime "15:27:44 PDT"]
[Termination "KaydenTroffChess won by resignation"]

1. d4 {[%clk 0:03:00.9]} 1... Nf6 {[%clk 0:03:00]} 2. Nf3 {[%clk 0:03:01.2]}
2... e6 {[%clk 0:03:00.2]} 3. Bf4 {[%clk 0:03:01.4]} 3... c5 {[%clk 0:02:59.3]}
4. e3 {[%clk 0:03:01.1]} 4... Nc6 {[%clk 0:02:59.2]} 5. Nc3 {[%clk 0:02:50.9]}
5... cxd4 {[%clk 0:02:45.6]} 6. exd4 {[%clk 0:02:44.6]} 6... Bb4 {[%clk
0:02:44.7]} 7. Bd3 {[%clk 0:02:38.6]} 7... Nd5 {[%clk 0:02:37.4]} 8. Bd2 {[%clk
0:02:36.6]} 8... Nxc3 {[%clk 0:02:37.9]} 9. bxc3 {[%clk 0:02:34.7]} 9... Be7
{[%clk 0:02:34.4]} 10. O-O {[%clk 0:02:33.5]} 10... O-O {[%clk 0:02:33.6]} 11.
c4 {[%clk 0:02:32.7]} 11... d6 {[%clk 0:02:33.8]} 12. Qe2 {[%clk 0:02:24.6]}
12... Bf6 {[%clk 0:02:31.2]} 13. c3 {[%clk 0:02:21.7]} 13... e5 {[%clk
0:02:26.2]} 14. Rfe1 {[%clk 0:01:58.6]} 14... g6 {[%clk 0:02:19.2]} 15. d5
{[%clk 0:01:58.1]} 15... Ne7 {[%clk 0:02:16.8]} 16. h4 {[%clk 0:01:55.2]} 16...
b6 {[%clk 0:02:14.4]} 17. h5 {[%clk 0:01:53.1]} 17... Bg4 {[%clk 0:02:10.5]} 18.
hxg6 {[%clk 0:01:51.8]} 18... hxg6 {[%clk 0:02:07.5]} 19. Qe3 {[%clk 0:01:50.1]}
19... Bg7 {[%clk 0:01:57.8]} 20. Ng5 {[%clk 0:01:38.8]} 20... Rc8 {[%clk
0:01:50.2]} 21. Qg3 {[%clk 0:01:35.5]} 21... Bh5 {[%clk 0:01:48.2]} 22. Qh4
{[%clk 0:01:31.9]} 22... Qd7 {[%clk 0:01:44.9]} 23. f3 {[%clk 0:01:29.2]} 23...
Nf5 {[%clk 0:01:41.3]} 24. Qh3 {[%clk 0:01:25]} 24... Bf6 {[%clk 0:01:10.2]} 25.
g4 {[%clk 0:01:20.7]} 25... Bxg5 {[%clk 0:01:10.6]} 26. Bxg5 {[%clk 0:01:20.2]}
26... f6 {[%clk 0:01:11]} 27. Bd2 {[%clk 0:01:13.7]} 27... Ng7 {[%clk 0:01:06]}
28. Kg2 {[%clk 0:01:07.5]} 28... f5 {[%clk 0:01:03.9]} 29. gxh5 {[%clk 0:01:07]}
29... Nxh5 {[%clk 0:01:04.6]} 30. Kf2 {[%clk 0:00:58.2]} 30... e4 {[%clk
0:01:00.3]} 31. Rxe4 {[%clk 0:00:55.4]} 31... Qg7 {[%clk 0:00:23.9]} 32. Re6
{[%clk 0:00:52]} 1-0

[Event "Late-Titled-Tuesday-Blitz-September-05-2023"]
[Site "Chess.com"]
[Date "2023.09.05"]
[Round "8"]
[White "Msb2"]
[Black "frederiksvane"]
[Result "1-0"]
[WhiteElo "3093"]
[BlackElo "2941"]
[TimeControl "180+1"]
[EndTime "15:27:50 PDT"]
[Termination "Msb2 won by checkmate"]

1. d4 {[%clk 0:03:00.9]} 1... Nf6 {[%clk 0:03:00.1]} 2. c4 {[%clk 0:03:01.6]}
2... e6 {[%clk 0:03:00.6]} 3. Nc3 {[%clk 0:03:02.4]} 3... Bb4 {[%clk 0:03:00.3]}
4. e3 {[%clk 0:03:03]} 4... O-O {[%clk 0:03:00.3]} 5. Bd2 {[%clk 0:03:03.8]}
5... d5 {[%clk 0:02:51]} 6. Nf3 {[%clk 0:03:04]} 6... Nbd7 {[%clk 0:02:49.9]} 7.
a3 {[%clk 0:03:04.5]} 7... Be7 {[%clk 0:02:49.6]} 8. cxd5 {[%clk 0:03:05]} 8...
exd5 {[%clk 0:02:49.8]} 9. Bd3 {[%clk 0:03:05.6]} 9... c6 {[%clk 0:02:50.2]} 10.
Qc2 {[%clk 0:03:06.4]} 10... Re8 {[%clk 0:02:49.4]} 11. Ne5 {[%clk 0:03:06.4]}
11... Nf8 {[%clk 0:02:37.6]} 12. O-O {[%clk 0:03:06.1]} 12... Bd6 {[%clk
0:02:36.3]} 13. f4 {[%clk 0:03:06.4]} 13... a5 {[%clk 0:02:29.2]} 14. Be1 {[%clk
0:03:05.3]} 14... Ng6 {[%clk 0:02:23.1]} 15. Bg3 {[%clk 0:03:01.4]} 15... c5
{[%clk 0:02:01.5]} 16. Bb5 {[%clk 0:02:42.1]} 16... Re7 {[%clk 0:01:54.9]} 17.
Rae1 {[%clk 0:02:41.4]} 17... Qb6 {[%clk 0:01:45.7]} 18. Kh1 {[%clk 0:02:04.2]}
18... cxd4 {[%clk 0:01:36.8]} 19. exd4 {[%clk 0:02:05.1]} 19... Qxd4 {[%clk
0:01:33.1]} 20. Bf2 {[%clk 0:02:05.6]} 20... Qxf4 {[%clk 0:01:31.1]} 21. Bg3
{[%clk 0:02:06.2]} 21... Qh6 {[%clk 0:01:01.7]} 22. Nxf7 {[%clk 0:01:41.7]}
22... Rxf7 {[%clk 0:00:52.3]} 23. Bxd6 {[%clk 0:01:42]} 23... Bd7 {[%clk
0:00:41.9]} 24. Qb3 {[%clk 0:01:24.4]} 24... Bxb5 {[%clk 0:00:37.3]} 25. Qxb5
{[%clk 0:01:25.3]} 25... Rd8 {[%clk 0:00:35]} 26. Qb6 {[%clk 0:01:13.5]} 26...
Rfd7 {[%clk 0:00:31.3]} 27. Bc7 {[%clk 0:01:14.1]} 27... Rc8 {[%clk 0:00:31.6]}
28. Qe6+ {[%clk 0:01:13.7]} 28... Kh8 {[%clk 0:00:31.5]} 29. Rxf6 {[%clk
0:01:08.6]} 29... Qh4 {[%clk 0:00:03.6]} 30. Qe8+ {[%clk 0:01:06.5]} 30... Rxe8
{[%clk 0:00:01.7]} 31. Rxe8+ {[%clk 0:01:07.4]} 31... Nf8 {[%clk 0:00:01]} 32.
Rfxf8# {[%clk 0:01:08.3]} 1-0